[Event "Titled Tuesday Blitz April 19 Late 2022"]
[White "Jaferian, Koosha"]
[Black "Tanenbaum, Zachary"]
[WhiteFideId "12507440"]
[BlackFideId "2060850"]
[WhiteElo "2030"]
[BlackElo "2168"]
[Result "1-0"]
[Round "08"]
[TimeControl "180+1"]
[Date "2022.04.19"]
[WhiteClock "0:00:23"]
[BlackClock "0:00:13"]

1. Nf3 {[%clk 0:03:00]}  d5 {[%clk 0:02:59]} 2. b3 {[%clk 0:02:57]}  Nf6 {[%clk 0:02:55]} 3. Bb2 {[%clk 0:02:57]}  Bf5 {[%clk 0:02:54]} 4. g3 {[%clk 0:02:57]}  e6 {[%clk 0:02:53]} 5. Bg2 {[%clk 0:02:58]}  Nbd7 {[%clk 0:02:53]} 6. O-O {[%clk 0:02:58]}  Bd6 {[%clk 0:02:53]} 7. d3 {[%clk 0:02:59]}  O-O {[%clk 0:02:50]} 8. Nbd2 {[%clk 0:03:00]}  e5 {[%clk 0:02:49]} 9. c4 {[%clk 0:02:54]}  c6 {[%clk 0:02:49]} 10. a3 {[%clk 0:02:51]}  a5 {[%clk 0:02:48]} 11. Ra2 {[%clk 0:02:51]}  Re8 {[%clk 0:02:40]} 12. Qa1 {[%clk 0:02:49]}  Qe7 {[%clk 0:02:28]} 13. Nh4 {[%clk 0:02:36]}  Bg4 {[%clk 0:02:27]} 14. Re1 {[%clk 0:02:26]}  Qe6 {[%clk 0:02:21]} 15. Nhf3 {[%clk 0:02:12]}  Bc5 {[%clk 0:02:15]} 16. e3 {[%clk 0:02:05]}  Qf5 {[%clk 0:02:10]} 17. Qb1 {[%clk 0:01:25]}  Qh5 {[%clk 0:01:56]} 18. Nxe5 {[%clk 0:01:09]}  Nxe5 {[%clk 0:01:54]} 19. d4 {[%clk 0:01:04]}  Bf5 {[%clk 0:01:52]} 20. Qa1 {[%clk 0:00:37]}  Nd3 {[%clk 0:01:50]} 21. dxc5 {[%clk 0:00:37]}  Nxe1 {[%clk 0:01:38]} 22. Qxe1 {[%clk 0:00:38]}  Ng4 {[%clk 0:01:31]} 23. h3 {[%clk 0:00:33]}  Ne5 {[%clk 0:01:26]} 24. Bxe5 {[%clk 0:00:22]}  Rxe5 {[%clk 0:01:27]} 25. g4 {[%clk 0:00:22]}  Bxg4 {[%clk 0:01:28]} 26. hxg4 {[%clk 0:00:23]}  Qxg4 {[%clk 0:01:28]} 27. Nf3 {[%clk 0:00:23]}  Rh5 {[%clk 0:01:22]} 28. cxd5 {[%clk 0:00:20]}  Rxd5 {[%clk 0:01:18]} 29. Rd2 {[%clk 0:00:19]}  Rad8 {[%clk 0:01:11]} 30. Rxd5 {[%clk 0:00:19]}  Rxd5 {[%clk 0:01:11]} 31. Qxa5 {[%clk 0:00:19]}  h5 {[%clk 0:00:45]} 32. Qb4 {[%clk 0:00:19]}  Rd1+ {[%clk 0:00:38]} 33. Kh2 {[%clk 0:00:19]}  Qxb4 {[%clk 0:00:37]} 34. axb4 {[%clk 0:00:20]}  Rb1 {[%clk 0:00:28]} 35. Nd4 {[%clk 0:00:20]}  h4 {[%clk 0:00:26]} 36. b5 {[%clk 0:00:20]}  cxb5 {[%clk 0:00:16]} 37. Bxb7 {[%clk 0:00:20]}  Rc1 {[%clk 0:00:17]} 38. c6 {[%clk 0:00:20]}  Kf8 {[%clk 0:00:12]} 39. Nxb5 {[%clk 0:00:20]}  Ke7 {[%clk 0:00:12]} 40. c7 {[%clk 0:00:21]}  Kd7 {[%clk 0:00:12]} 41. c8=Q+ {[%clk 0:00:22]}  Rxc8 {[%clk 0:00:12]} 42. Bxc8+ {[%clk 0:00:22]}  Kxc8 {[%clk 0:00:13]} 43. Kh3 {[%clk 0:00:23]}  g5 {[%clk 0:00:13]} 44. Nd4 {[%clk 0:00:23]}  Kc7 {[%clk 0:00:13]} 45. f4 {[%clk 0:00:22]}  f6 {[%clk 0:00:12]} 46. fxg5 {[%clk 0:00:23]}  fxg5 {[%clk 0:00:13]} 47. Nf3 {[%clk 0:00:23]} 1-0


[Site "https://www.chess.com"]

[Event "Titled Tuesday Blitz April 19 Late 2022"]
[White "Jaskolka, Tomasz"]
[Black "Ezat, Mohamed"]
[WhiteFideId "1170791"]
[BlackFideId "10600906"]
[WhiteElo "2073"]
[BlackElo "2386"]
[Result "0-1"]
[Round "08"]
[TimeControl "180+1"]
[Date "2022.04.19"]
[WhiteClock "0:00:26"]
[BlackClock "0:00:17"]

1. d4 {[%clk 0:03:00]}  Nf6 {[%clk 0:02:58]} 2. Bf4 {[%clk 0:02:59]}  c5 {[%clk 0:02:59]} 3. e3 {[%clk 0:02:59]}  cxd4 {[%clk 0:02:57]} 4. exd4 {[%clk 0:02:59]}  d5 {[%clk 0:02:57]} 5. c3 {[%clk 0:02:58]}  Nc6 {[%clk 0:02:57]} 6. Nd2 {[%clk 0:02:59]}  Bg4 {[%clk 0:02:56]} 7. Ngf3 {[%clk 0:02:58]}  e6 {[%clk 0:02:55]} 8. Be2 {[%clk 0:02:58]}  Bd6 {[%clk 0:02:55]} 9. Ne5 {[%clk 0:02:57]}  Bxe5 {[%clk 0:02:51]} 10. dxe5 {[%clk 0:02:56]}  Bxe2 {[%clk 0:02:51]} 11. Qxe2 {[%clk 0:02:57]}  Nd7 {[%clk 0:02:51]} 12. O-O {[%clk 0:02:56]}  O-O {[%clk 0:02:50]} 13. Rfd1 {[%clk 0:02:53]}  Qc7 {[%clk 0:02:49]} 14. c4 {[%clk 0:02:44]}  Ncxe5 {[%clk 0:02:40]} 15. cxd5 {[%clk 0:02:44]}  exd5 {[%clk 0:02:40]} 16. Rac1 {[%clk 0:02:44]}  Qb6 {[%clk 0:02:17]} 17. Bxe5 {[%clk 0:02:34]}  Rae8 {[%clk 0:02:17]} 18. Nf3 {[%clk 0:02:33]}  f6 {[%clk 0:02:16]} 19. Rxd5 {[%clk 0:02:31]}  Nxe5 {[%clk 0:02:16]} 20. Nxe5 {[%clk 0:02:31]}  fxe5 {[%clk 0:02:13]} 21. b3 {[%clk 0:02:27]}  e4 {[%clk 0:02:08]} 22. Rd7 {[%clk 0:01:58]}  e3 {[%clk 0:02:01]} 23. f3 {[%clk 0:01:47]}  Rc8 {[%clk 0:01:56]} 24. Rcd1 {[%clk 0:01:41]}  h6 {[%clk 0:01:50]} 25. h4 {[%clk 0:01:34]}  Rf4 {[%clk 0:01:46]} 26. g3 {[%clk 0:01:31]}  Rf6 {[%clk 0:01:32]} 27. Kg2 {[%clk 0:01:30]}  Rfc6 {[%clk 0:01:25]} 28. Kh3 {[%clk 0:00:57]}  Rc2 {[%clk 0:01:21]} 29. Qd3 {[%clk 0:00:56]}  Qe6+ {[%clk 0:01:20]} 30. g4 {[%clk 0:00:55]}  R2c3 {[%clk 0:01:01]} 31. Qd4 {[%clk 0:00:45]}  Qg6 {[%clk 0:00:45]} 32. h5 {[%clk 0:00:40]}  Qg5 {[%clk 0:00:44]} 33. Rd5 {[%clk 0:00:38]}  Qe7 {[%clk 0:00:32]} 34. Rd7 {[%clk 0:00:38]}  Qf8 {[%clk 0:00:32]} 35. Qd5+ {[%clk 0:00:36]}  Kh8 {[%clk 0:00:31]} 36. Rf7 {[%clk 0:00:34]}  Qg8 {[%clk 0:00:25]} 37. Qxb7 {[%clk 0:00:32]}  e2 {[%clk 0:00:24]} 38. Re1 {[%clk 0:00:30]}  Re8 {[%clk 0:00:21]} 39. Re7 {[%clk 0:00:27]}  Rxe7 {[%clk 0:00:17]} 40. Qxe7 {[%clk 0:00:27]}  Rxf3+ {[%clk 0:00:18]} 41. Kg2 {[%clk 0:00:27]}  Qd5 {[%clk 0:00:17]} 42. Qe8+ {[%clk 0:00:26]}  Rf8+ {[%clk 0:00:17]} 0-1


[Site "https://www.chess.com"]

[Event "Titled Tuesday Blitz April 19 Late 2022"]
[White "Jessel, Stephen"]
[Black "Foisor, Sabina-Francesca"]
[WhiteFideId "628859"]
[BlackFideId "1212915"]
[WhiteElo "2268"]
[BlackElo "2243"]
[Result "0-1"]
[Round "08"]
[TimeControl "180+1"]
[Date "2022.04.19"]
[WhiteClock "0:00:01"]
[BlackClock "0:00:23"]

1. Nf3 {[%clk 0:03:00]}  d5 {[%clk 0:02:59]} 2. c4 {[%clk 0:03:00]}  e6 {[%clk 0:03:00]} 3. g3 {[%clk 0:03:01]}  Nf6 {[%clk 0:02:59]} 4. Bg2 {[%clk 0:03:02]}  Be7 {[%clk 0:03:00]} 5. O-O {[%clk 0:03:02]}  O-O {[%clk 0:03:00]} 6. b3 {[%clk 0:03:02]}  b6 {[%clk 0:02:59]} 7. Bb2 {[%clk 0:03:03]}  Bb7 {[%clk 0:03:00]} 8. e3 {[%clk 0:03:03]}  c5 {[%clk 0:03:00]} 9. Nc3 {[%clk 0:03:04]}  Nbd7 {[%clk 0:02:56]} 10. Qe2 {[%clk 0:03:03]}  Rc8 {[%clk 0:02:54]} 11. Rfd1 {[%clk 0:03:04]}  a6 {[%clk 0:02:51]} 12. cxd5 {[%clk 0:03:04]}  exd5 {[%clk 0:02:41]} 13. d4 {[%clk 0:03:04]}  c4 {[%clk 0:02:39]} 14. bxc4 {[%clk 0:02:44]}  dxc4 {[%clk 0:02:25]} 15. d5 {[%clk 0:02:44]}  Bd6 {[%clk 0:02:18]} 16. Nd4 {[%clk 0:02:35]}  b5 {[%clk 0:02:11]} 17. Nc6 {[%clk 0:02:19]}  Qc7 {[%clk 0:02:08]} 18. Ne4 {[%clk 0:01:50]}  Nxe4 {[%clk 0:01:55]} 19. Bxe4 {[%clk 0:01:50]}  f5 {[%clk 0:01:55]} 20. Bg2 {[%clk 0:01:42]}  Rce8 {[%clk 0:01:51]} 21. a4 {[%clk 0:01:28]}  Nf6 {[%clk 0:01:31]} 22. axb5 {[%clk 0:01:23]}  axb5 {[%clk 0:01:32]} 23. Ra7 {[%clk 0:01:17]}  Ra8 {[%clk 0:01:29]} 24. Rda1 {[%clk 0:01:11]}  Rxa7 {[%clk 0:01:21]} 25. Rxa7 {[%clk 0:01:12]}  Bc5 {[%clk 0:01:07]} 26. Ra1 {[%clk 0:00:53]}  Ne4 {[%clk 0:01:00]} 27. Bxe4 {[%clk 0:00:45]}  fxe4 {[%clk 0:01:01]} 28. Qg4 {[%clk 0:00:46]}  Bxc6 {[%clk 0:00:43]} 29. dxc6 {[%clk 0:00:42]}  b4 {[%clk 0:00:42]} 30. Rd1 {[%clk 0:00:19]}  c3 {[%clk 0:00:35]} 31. Rd7 {[%clk 0:00:18]}  Qe5 {[%clk 0:00:35]} 32. Bc1 {[%clk 0:00:03]}  b3 {[%clk 0:00:33]} 33. c7 {[%clk 0:00:04]}  b2 {[%clk 0:00:34]} 34. c8=Q {[%clk 0:00:01]}  bxc1=Q+ {[%clk 0:00:33]} 35. Kg2 {[%clk 0:00:02]}  Rxc8 {[%clk 0:00:25]} 36. Rxg7+ {[%clk 0:00:01]}  Qxg7 {[%clk 0:00:24]} 37. Qxc8+ {[%clk 0:00:01]}  Qf8 {[%clk 0:00:23]} 38. Qg4+ {[%clk 0:00:01]}  Kh8 {[%clk 0:00:23]} 0-1


[Site "https://www.chess.com"]

[Event "Titled Tuesday Blitz April 19 Late 2022"]
[White "Jimenez Fernandez, Rebeca"]
[Black "Mohammadian, Mohammad"]
[WhiteFideId "32070934"]
[BlackFideId "12566055"]
[WhiteElo "1853"]
[BlackElo "1544"]
[Result "1-0"]
[Round "08"]
[TimeControl "180+1"]
[Date "2022.04.19"]
[WhiteClock "0:01:28"]
[BlackClock "0:00:14"]

1. e4 {[%clk 0:03:00]}  e5 {[%clk 0:02:58]} 2. d4 {[%clk 0:03:00]}  exd4 {[%clk 0:02:57]} 3. Qxd4 {[%clk 0:03:01]}  Nc6 {[%clk 0:02:56]} 4. Qe3 {[%clk 0:03:01]}  d6 {[%clk 0:02:53]} 5. Nc3 {[%clk 0:03:02]}  Nf6 {[%clk 0:02:52]} 6. Bd2 {[%clk 0:03:02]}  Be7 {[%clk 0:02:52]} 7. O-O-O {[%clk 0:03:02]}  Bd7 {[%clk 0:02:47]} 8. h3 {[%clk 0:03:03]}  O-O {[%clk 0:02:46]} 9. f4 {[%clk 0:02:59]}  Qe8 {[%clk 0:02:43]} 10. g4 {[%clk 0:02:57]}  h6 {[%clk 0:02:42]} 11. g5 {[%clk 0:02:56]}  hxg5 {[%clk 0:02:41]} 12. fxg5 {[%clk 0:02:57]}  Nh7 {[%clk 0:02:35]} 13. Nf3 {[%clk 0:02:50]}  Ne5 {[%clk 0:02:35]} 14. h4 {[%clk 0:02:44]}  Nxf3 {[%clk 0:02:35]} 15. Qxf3 {[%clk 0:02:45]}  g6 {[%clk 0:02:33]} 16. Nd5 {[%clk 0:02:45]}  Be6 {[%clk 0:02:23]} 17. Nxe7+ {[%clk 0:02:43]}  Qxe7 {[%clk 0:02:22]} 18. Bc3 {[%clk 0:02:32]}  Qd7 {[%clk 0:02:05]} 19. h5 {[%clk 0:02:23]}  Bg4 {[%clk 0:02:04]} 20. hxg6 {[%clk 0:02:23]}  fxg6 {[%clk 0:01:54]} 21. Bc4+ {[%clk 0:02:22]}  d5 {[%clk 0:01:53]} 22. Bxd5+ {[%clk 0:02:18]}  Qxd5 {[%clk 0:01:53]} 23. Qxf8+ {[%clk 0:02:15]}  Rxf8 {[%clk 0:01:48]} 24. Rxd5 {[%clk 0:02:14]}  Be6 {[%clk 0:01:37]} 25. Re5 {[%clk 0:02:09]}  Re8 {[%clk 0:01:24]} 26. b3 {[%clk 0:02:06]}  c6 {[%clk 0:01:23]} 27. Rd1 {[%clk 0:02:01]}  Bg4 {[%clk 0:01:19]} 28. Rxe8+ {[%clk 0:02:00]}  Kf7 {[%clk 0:01:16]} 29. Rh8 {[%clk 0:01:56]}  Nxg5 {[%clk 0:01:13]} 30. Rg1 {[%clk 0:01:53]}  Nxe4 {[%clk 0:01:07]} 31. Rxg4 {[%clk 0:01:47]}  Nxc3 {[%clk 0:01:07]} 32. Rh7+ {[%clk 0:01:47]}  Kf6 {[%clk 0:01:03]} 33. Rxb7 {[%clk 0:01:46]}  Kf5 {[%clk 0:01:00]} 34. Rc4 {[%clk 0:01:43]}  Nd5 {[%clk 0:00:52]} 35. Rxc6 {[%clk 0:01:41]}  Ne3 {[%clk 0:00:52]} 36. Rf7+ {[%clk 0:01:39]}  Kg5 {[%clk 0:00:49]} 37. Rg7 {[%clk 0:01:39]}  Nd5 {[%clk 0:00:30]} 38. Rcxg6+ {[%clk 0:01:39]}  Kf4 {[%clk 0:00:29]} 39. Rxa7 {[%clk 0:01:36]}  Ke3 {[%clk 0:00:25]} 40. Rd6 {[%clk 0:01:32]}  Nc3 {[%clk 0:00:24]} 41. Re7+ {[%clk 0:01:31]}  Kf4 {[%clk 0:00:20]} 42. Rf6+ {[%clk 0:01:31]}  Kg5 {[%clk 0:00:19]} 43. Rf2 {[%clk 0:01:30]}  Nb5 {[%clk 0:00:14]} 44. Rg7+ {[%clk 0:01:29]}  Kh6 {[%clk 0:00:14]} 45. Rg1 {[%clk 0:01:28]} 1-0


[Site "https://www.chess.com"]

[Event "Titled Tuesday Blitz April 19 Late 2022"]
[White "Kaganskiy, Gleb"]
[Black "Lehtosaari, Mauri"]
[WhiteFideId "4132025"]
[BlackFideId "501999"]
[WhiteElo "2165"]
[BlackElo "2448"]
[Result "0-1"]
[Round "08"]
[TimeControl "180+1"]
[Date "2022.04.19"]
[WhiteClock "0:00:25"]
[BlackClock "0:00:12"]

1. e4 {[%clk 0:03:00]}  c5 {[%clk 0:02:59]} 2. Nf3 {[%clk 0:03:00]}  e6 {[%clk 0:02:59]} 3. g3 {[%clk 0:02:59]}  Nc6 {[%clk 0:02:58]} 4. Bg2 {[%clk 0:02:58]}  d6 {[%clk 0:02:59]} 5. O-O {[%clk 0:02:58]}  Nf6 {[%clk 0:03:00]} 6. Re1 {[%clk 0:02:58]}  Be7 {[%clk 0:02:56]} 7. d4 {[%clk 0:02:57]}  cxd4 {[%clk 0:02:54]} 8. Nxd4 {[%clk 0:02:58]}  O-O {[%clk 0:02:52]} 9. c4 {[%clk 0:02:54]}  Bd7 {[%clk 0:02:46]} 10. Nc3 {[%clk 0:02:53]}  Nxd4 {[%clk 0:02:45]} 11. Qxd4 {[%clk 0:02:51]}  Bc6 {[%clk 0:02:45]} 12. Bg5 {[%clk 0:02:49]}  h6 {[%clk 0:02:44]} 13. Bxf6 {[%clk 0:02:47]}  Bxf6 {[%clk 0:02:45]} 14. Qd3 {[%clk 0:02:48]}  Qb6 {[%clk 0:02:39]} 15. b3 {[%clk 0:02:44]}  Rfd8 {[%clk 0:02:37]} 16. Rad1 {[%clk 0:02:42]}  Qa5 {[%clk 0:02:36]} 17. Rc1 {[%clk 0:02:38]}  a6 {[%clk 0:02:21]} 18. a4 {[%clk 0:02:32]}  Rac8 {[%clk 0:02:14]} 19. Ne2 {[%clk 0:02:26]}  b5 {[%clk 0:02:04]} 20. axb5 {[%clk 0:02:25]}  axb5 {[%clk 0:02:03]} 21. Nd4 {[%clk 0:02:25]}  bxc4 {[%clk 0:01:50]} 22. bxc4 {[%clk 0:02:17]}  Be8 {[%clk 0:01:42]} 23. Nb5 {[%clk 0:02:11]}  Qb4 {[%clk 0:01:14]} 24. Nd4 {[%clk 0:02:03]}  Rc7 {[%clk 0:00:47]} 25. h4 {[%clk 0:01:58]}  Rdc8 {[%clk 0:00:42]} 26. Bh3 {[%clk 0:01:51]}  Rxc4 {[%clk 0:00:34]} 27. Rxc4 {[%clk 0:01:48]}  Rxc4 {[%clk 0:00:28]} 28. Nf3 {[%clk 0:01:47]}  Rc3 {[%clk 0:00:22]} 29. Qd2 {[%clk 0:01:42]}  Qc4 {[%clk 0:00:20]} 30. Bg2 {[%clk 0:01:38]}  Rc2 {[%clk 0:00:20]} 31. Qxd6 {[%clk 0:01:37]}  Qc8 {[%clk 0:00:18]} 32. e5 {[%clk 0:01:36]}  Bd8 {[%clk 0:00:17]} 33. Nd4 {[%clk 0:01:35]}  Rd2 {[%clk 0:00:16]} 34. Re2 {[%clk 0:01:29]}  Rd1+ {[%clk 0:00:15]} 35. Kh2 {[%clk 0:01:29]}  Bc7 {[%clk 0:00:16]} 36. Qc5 {[%clk 0:01:25]}  Qb8 {[%clk 0:00:16]} 37. f4 {[%clk 0:01:24]}  Bb6 {[%clk 0:00:16]} 38. Nc6 {[%clk 0:01:09]}  Bxc5 {[%clk 0:00:14]} 39. Nxb8 {[%clk 0:01:09]}  Bg1+ {[%clk 0:00:14]} 40. Kh3 {[%clk 0:01:09]}  Bb5 {[%clk 0:00:15]} 41. Rc2 {[%clk 0:01:04]}  Bd3 {[%clk 0:00:14]} 42. Rc8+ {[%clk 0:01:00]}  Kh7 {[%clk 0:00:14]} 43. Nc6 {[%clk 0:00:56]}  Bf5+ {[%clk 0:00:14]} 44. g4 {[%clk 0:00:56]}  Rd3+ {[%clk 0:00:14]} 45. Bf3 {[%clk 0:00:55]}  Rxf3+ {[%clk 0:00:15]} 46. Kg2 {[%clk 0:00:56]}  Bxg4 {[%clk 0:00:14]} 47. Kxg1 {[%clk 0:00:55]}  Rxf4 {[%clk 0:00:14]} 48. Rc7 {[%clk 0:00:54]}  Bh5 {[%clk 0:00:15]} 49. Kg2 {[%clk 0:00:52]}  Rxh4 {[%clk 0:00:15]} 50. Kg3 {[%clk 0:00:53]}  Rc4 {[%clk 0:00:14]} 51. Rc8 {[%clk 0:00:51]}  Rc5 {[%clk 0:00:13]} 52. Kf4 {[%clk 0:00:50]}  Bg6 {[%clk 0:00:12]} 53. Ne7 {[%clk 0:00:46]}  Rxc8 {[%clk 0:00:11]} 54. Nxc8 {[%clk 0:00:47]}  f6 {[%clk 0:00:12]} 55. Nd6 {[%clk 0:00:43]}  Kg8 {[%clk 0:00:11]} 56. Nc4 {[%clk 0:00:41]}  Kf7 {[%clk 0:00:11]} 57. Nd6+ {[%clk 0:00:41]}  Ke7 {[%clk 0:00:11]} 58. Nc4 {[%clk 0:00:41]}  h5 {[%clk 0:00:11]} 59. Ne3 {[%clk 0:00:39]}  Bf7 {[%clk 0:00:11]} 60. Ng2 {[%clk 0:00:38]}  g5+ {[%clk 0:00:11]} 61. Ke4 {[%clk 0:00:38]}  Bg6+ {[%clk 0:00:11]} 62. Kd4 {[%clk 0:00:37]}  f5 {[%clk 0:00:12]} 63. Ke3 {[%clk 0:00:35]}  f4+ {[%clk 0:00:12]} 64. Kd4 {[%clk 0:00:35]}  Bf5 {[%clk 0:00:11]} 65. Ne1 {[%clk 0:00:33]}  g4 {[%clk 0:00:11]} 66. Ng2 {[%clk 0:00:32]}  f3 {[%clk 0:00:11]} 67. Ne3 {[%clk 0:00:32]}  Kf7 {[%clk 0:00:10]} 68. Nf1 {[%clk 0:00:30]}  h4 {[%clk 0:00:10]} 69. Ke3 {[%clk 0:00:30]}  Kg6 {[%clk 0:00:10]} 70. Kf4 {[%clk 0:00:30]}  Bd3 {[%clk 0:00:09]} 71. Nh2 {[%clk 0:00:28]}  f2 {[%clk 0:00:09]} 72. Kxg4 {[%clk 0:00:23]}  f1=Q {[%clk 0:00:08]} 73. Nxf1 {[%clk 0:00:24]}  Bxf1 {[%clk 0:00:09]} 74. Kxh4 {[%clk 0:00:23]}  Kf5 {[%clk 0:00:09]} 75. Kg3 {[%clk 0:00:23]}  Kxe5 {[%clk 0:00:09]} 76. Kf2 {[%clk 0:00:24]}  Bb5 {[%clk 0:00:10]} 77. Ke1 {[%clk 0:00:24]}  Kd4 {[%clk 0:00:10]} 78. Kd2 {[%clk 0:00:25]}  e5 {[%clk 0:00:11]} 79. Ke1 {[%clk 0:00:26]}  e4 {[%clk 0:00:11]} 80. Kd2 {[%clk 0:00:27]}  e3+ {[%clk 0:00:12]} 81. Ke1 {[%clk 0:00:28]}  Kd3 {[%clk 0:00:12]} 82. Kd1 {[%clk 0:00:24]}  e2+ {[%clk 0:00:11]} 83. Ke1 {[%clk 0:00:25]}  Ba4 {[%clk 0:00:11]} 84. Kf2 {[%clk 0:00:25]}  Kd2 {[%clk 0:00:12]} 0-1


[Site "https://www.chess.com"]

[Event "Titled Tuesday Blitz April 19 Late 2022"]
[White "Karwowski, Kacper"]
[Black "Petesch, Gabriel"]
[WhiteFideId "1126032"]
[BlackFideId "2032465"]
[WhiteElo "2261"]
[BlackElo "2374"]
[Result "0-1"]
[Round "08"]
[TimeControl "180+1"]
[Date "2022.04.19"]
[WhiteClock "0:00:01"]
[BlackClock "0:01:20"]

1. e4 {[%clk 0:03:00]}  Nf6 {[%clk 0:02:58]} 2. e5 {[%clk 0:02:57]}  Nd5 {[%clk 0:02:56]} 3. d4 {[%clk 0:02:52]}  d6 {[%clk 0:02:54]} 4. exd6 {[%clk 0:02:48]}  Qxd6 {[%clk 0:02:53]} 5. Bd3 {[%clk 0:02:44]}  Nf4 {[%clk 0:02:49]} 6. Bxf4 {[%clk 0:02:32]}  Qxf4 {[%clk 0:02:49]} 7. Ne2 {[%clk 0:02:28]}  Qd6 {[%clk 0:02:46]} 8. Nbc3 {[%clk 0:02:20]}  c6 {[%clk 0:02:46]} 9. Ne4 {[%clk 0:02:19]}  Qb4+ {[%clk 0:02:44]} 10. Qd2 {[%clk 0:02:10]}  Qxb2 {[%clk 0:02:42]} 11. O-O {[%clk 0:02:09]}  Qa3 {[%clk 0:02:40]} 12. Qf4 {[%clk 0:01:54]}  Qa5 {[%clk 0:02:28]} 13. N2g3 {[%clk 0:01:44]}  e6 {[%clk 0:02:24]} 14. Ng5 {[%clk 0:01:09]}  f6 {[%clk 0:02:22]} 15. Nxh7 {[%clk 0:01:06]}  Na6 {[%clk 0:02:06]} 16. Nxf6+ {[%clk 0:00:52]}  gxf6 {[%clk 0:02:04]} 17. Qxf6 {[%clk 0:00:51]}  Rg8 {[%clk 0:02:04]} 18. Bg6+ {[%clk 0:00:35]}  Rxg6 {[%clk 0:02:04]} 19. Qxg6+ {[%clk 0:00:36]}  Kd8 {[%clk 0:02:04]} 20. Qf7 {[%clk 0:00:21]}  Be7 {[%clk 0:02:02]} 21. Rfe1 {[%clk 0:00:19]}  Qg5 {[%clk 0:01:54]} 22. c4 {[%clk 0:00:12]}  Bd7 {[%clk 0:01:51]} 23. d5 {[%clk 0:00:12]}  exd5 {[%clk 0:01:37]} 24. cxd5 {[%clk 0:00:12]}  Qf6 {[%clk 0:01:36]} 25. Qg8+ {[%clk 0:00:05]}  Qf8 {[%clk 0:01:34]} 26. Qxf8+ {[%clk 0:00:06]}  Bxf8 {[%clk 0:01:34]} 27. dxc6 {[%clk 0:00:06]}  Bxc6 {[%clk 0:01:35]} 28. Rad1+ {[%clk 0:00:06]}  Kc7 {[%clk 0:01:34]} 29. Nf5 {[%clk 0:00:04]}  Nc5 {[%clk 0:01:33]} 30. Ne7 {[%clk 0:00:04]}  Ba4 {[%clk 0:01:31]} 31. Rc1 {[%clk 0:00:03]}  b6 {[%clk 0:01:30]} 32. Nd5+ {[%clk 0:00:03]}  Kb7 {[%clk 0:01:28]} 33. g3 {[%clk 0:00:04]}  Bh6 {[%clk 0:01:26]} 34. f4 {[%clk 0:00:03]}  Rg8 {[%clk 0:01:26]} 35. Kf2 {[%clk 0:00:03]}  Rd8 {[%clk 0:01:22]} 36. Re7+ {[%clk 0:00:03]}  Ka6 {[%clk 0:01:21]} 37. Nf6 {[%clk 0:00:03]}  Nd3+ {[%clk 0:01:19]} 38. Kf3 {[%clk 0:00:03]}  Nxc1 {[%clk 0:01:19]} 39. Nd7 {[%clk 0:00:01]}  Bd1+ {[%clk 0:01:20]} 0-1


[Site "https://www.chess.com"]

[Event "Titled Tuesday Blitz April 19 Late 2022"]
[White "Kazakouski, Valery"]
[Black "Vlassov, Nikolai"]
[WhiteFideId "13507443"]
[BlackFideId "4103360"]
[WhiteElo "2524"]
[BlackElo "2407"]
[Result "0-1"]
[Round "08"]
[TimeControl "180+1"]
[Date "2022.04.19"]
[WhiteClock "0:00:01"]
[BlackClock "0:00:34"]

1. d4 {[%clk 0:02:55]}  Nf6 {[%clk 0:02:59]} 2. c4 {[%clk 0:02:55]}  Nc6 {[%clk 0:03:00]} 3. Nf3 {[%clk 0:02:54]}  e6 {[%clk 0:03:00]} 4. g3 {[%clk 0:02:52]}  Bb4+ {[%clk 0:03:00]} 5. Bd2 {[%clk 0:02:53]}  a5 {[%clk 0:03:00]} 6. Bg2 {[%clk 0:02:53]}  d6 {[%clk 0:03:01]} 7. O-O {[%clk 0:02:53]}  e5 {[%clk 0:03:01]} 8. Be3 {[%clk 0:02:53]}  O-O {[%clk 0:02:50]} 9. a3 {[%clk 0:02:47]}  exd4 {[%clk 0:02:50]} 10. Nxd4 {[%clk 0:02:46]}  Nxd4 {[%clk 0:02:44]} 11. Bxd4 {[%clk 0:02:39]}  Bc5 {[%clk 0:02:43]} 12. Bxc5 {[%clk 0:02:39]}  dxc5 {[%clk 0:02:44]} 13. Qxd8 {[%clk 0:02:39]}  Rxd8 {[%clk 0:02:44]} 14. Nc3 {[%clk 0:02:38]}  Be6 {[%clk 0:02:36]} 15. b3 {[%clk 0:02:32]}  Rab8 {[%clk 0:02:15]} 16. Rfd1 {[%clk 0:02:29]}  b6 {[%clk 0:02:15]} 17. h3 {[%clk 0:02:20]}  Kf8 {[%clk 0:02:14]} 18. f4 {[%clk 0:02:18]}  Ke7 {[%clk 0:02:08]} 19. Kf2 {[%clk 0:02:18]}  Rxd1 {[%clk 0:01:51]} 20. Rxd1 {[%clk 0:02:17]}  Rd8 {[%clk 0:01:52]} 21. Rxd8 {[%clk 0:02:17]}  Kxd8 {[%clk 0:01:52]} 22. g4 {[%clk 0:02:11]}  Ne8 {[%clk 0:01:48]} 23. a4 {[%clk 0:01:53]}  f6 {[%clk 0:01:47]} 24. Bd5 {[%clk 0:01:48]}  Bd7 {[%clk 0:01:43]} 25. Kg3 {[%clk 0:01:37]}  Nd6 {[%clk 0:01:39]} 26. e4 {[%clk 0:01:34]}  h6 {[%clk 0:01:23]} 27. e5 {[%clk 0:01:32]}  fxe5 {[%clk 0:01:22]} 28. fxe5 {[%clk 0:01:33]}  Nc8 {[%clk 0:01:20]} 29. Kf4 {[%clk 0:00:43]}  Ne7 {[%clk 0:01:19]} 30. e6 {[%clk 0:00:36]}  Be8 {[%clk 0:01:16]} 31. Be4 {[%clk 0:00:36]}  Ng6+ {[%clk 0:01:04]} 32. Kf5 {[%clk 0:00:20]}  Ke7 {[%clk 0:00:57]} 33. Nb5 {[%clk 0:00:04]}  c6 {[%clk 0:00:51]} 34. Na7 {[%clk 0:00:03]}  Kd6 {[%clk 0:00:47]} 35. Nc8+ {[%clk 0:00:02]}  Kc7 {[%clk 0:00:47]} 36. Na7 {[%clk 0:00:02]}  Ne7+ {[%clk 0:00:42]} 37. Ke5 {[%clk 0:00:01]}  Ng6+ {[%clk 0:00:40]} 38. Bxg6 {[%clk 0:00:01]}  Bxg6 {[%clk 0:00:40]} 39. e7 {[%clk 0:00:02]}  Kd7 {[%clk 0:00:36]} 40. h4 {[%clk 0:00:01]}  Kxe7 {[%clk 0:00:34]} 0-1


[Site "https://www.chess.com"]